bitfinex/quotes_ETHUSD_20250813
["timestamp","ask_amount","ask_price","bid_price","bid_amount"]
[1755064577469,0.9529,4623.0,4622.9,3.383]
[1755064578961,0.9529,4623.0,4622.9,3.483]
[1755064580486,0.002,4623.1,4622.9,3.483]
[1755064581799,0.002,4623.1,4623.0,0.6392]
[1755064584317,0.002,4623.1,4623.0,3.383]
[1755064584519,0.002,4623.1,4623.0,4.0222]
[1755064585820,0.002,4623.1,4623.0,4.1302]
[1755064585990,0.002,4623.1,4623.0,4.6802]
[1755064592836,0.002,4623.1,4623.0,4.039]
[1755064593228,0.002,4623.1,4623.0,0.108]
[1755064593405,0.002,4623.1,4623.0,3.489]
[1755064595454,0.002,4623.1,4623.0,11.367]
[1755064596204,0.002,4623.1,4623.0,11.6364]
[1755064596410,0.002,4623.1,4623.0,12.0062]
[1755064597235,0.002,4623.1,4623.0,11.367]
[1755064598341,0.9334,4623.1,4623.0,11.366]
[1755064599511,0.9334,4623.1,4623.0,11.258]
[1755064599744,1.0414,4623.1,4623.0,11.258]
[1755064602441,1.0414,4623.1,4623.0,7.878]
[1755064602610,1.0414,4623.1,4623.0,11.258]
[1755064604033,1.0414,4623.1,4623.0,11.259]
[1755064607648,0.11,4623.1,4623.0,11.259]
[1755064608314,0.5768,4623.1,4623.0,11.259]
[1755064610649,1.0414,4623.1,4623.0,11.259]
[1755064611264,0.11,4623.1,4623.0,11.259]
[1755064612426,0.002,4623.1,4623.0,11.259]
[1755064612827,0.002,4623.1,4623.0,11.45723627]
[1755064613152,0.002,4623.1,4623.0,11.367]
[1755064613460,0.002,4623.1,4623.0,11.6364]
[1755064613753,0.002,4623.1,4623.0,11.367]
[1755064615856,0.002,4623.1,4623.0,11.6364]
[1755064616241,0.002,4623.1,4623.0,11.367]
[1755064617974,0.002,4623.1,4623.0,12.0062]
[1755064618562,0.002,4623.1,4623.0,11.367]
[1755064618763,0.002,4623.1,4623.0,12.0062]
[1755064621267,0.002,4623.1,4623.0,12.5562]
[1755064621995,0.002,4623.1,4623.0,11.367]
[1755064622688,0.002,4623.1,4623.0,7.987]
[1755064622846,0.9153,4623.1,4623.0,11.365]
[1755064623592,0.9153,4623.1,4623.0,7.987]
[1755064623770,0.002,4623.1,4623.0,11.365]
[1755064626064,0.4508,4623.1,4623.0,11.365]
[1755064626972,0.9153,4623.1,4623.0,7.879]
[1755064627149,0.9153,4623.1,4623.0,11.257]
[1755064628453,0.002,4623.1,4623.0,11.257]
[1755064633089,0.002,4623.1,4623.0,12.0042]
[1755064633423,0.002,4623.1,4623.0,7.987]
[1755064633574,0.9153,4623.1,4623.0,11.256]
[1755064634677,0.002,4623.1,4623.0,11.256]
[1755064636287,0.4508,4623.1,4623.0,11.256]
[1755064637034,0.9153,4623.1,4623.0,11.256]
[1755064638912,0.4508,4623.1,4623.0,11.256]
[1755064639509,0.002,4623.1,4623.0,11.256]
[1755064643042,0.002,4623.1,4623.0,11.8952]
[1755064643541,0.002,4623.1,4623.0,12.0032]
[1755064643855,0.002,4623.1,4623.0,11.7338]
[1755064644158,0.002,4623.1,4623.0,12.5532]
[1755064644314,0.002,4623.1,4623.0,9.8582]
[1755064644928,0.002,4623.1,4623.0,9.219]
[1755064645457,0.002,4623.1,4623.0,11.912]
[1755064645623,0.002,4623.1,4623.0,13.70600843]
[1755064645814,0.002,4623.2,4623.1,0.55]
[1755064646146,0.002,4623.2,4623.1,3.375]
[1755064649123,0.002,4623.2,4623.1,3.925]
[1755064649431,0.002,4623.6,4623.2,0.55]
[1755064649631,0.002,4623.6,4623.2,1.1872]
[1755064649842,0.002,4623.6,4623.2,1.5273527]
[1755064650047,0.002,4623.6,4623.4,0.55]
[1755064650362,0.002,4623.6,4623.5,3.925]
[1755064650850,0.002,4623.6,4623.5,4.5622]
[1755064651960,0.002,4623.6,4623.5,0.55]
[1755064652261,0.002,4623.6,4623.5,4.5612]
[1755064652565,0.002,4623.6,4623.5,3.924]
[1755064653431,0.002,4623.6,4623.5,0.55]
[1755064653628,0.002,4623.6,4623.0,0.001]
[1755064653870,0.4296,4623.6,4623.1,3.374]
[1755064654170,0.9238,4623.5,4623.2,3.374]
[1755064654471,0.9238,4623.4,4623.3,3.374]
[1755064654634,0.9238,4623.4,4623.0,0.001]
[1755064654834,0.9238,4623.3,4623.1,3.374]
[1755064655147,0.4276,4623.2,4623.1,3.374]
[1755064655343,0.4276,4623.2,4623.1,11.252]
[1755064655573,0.4276,4623.2,4623.1,11.36]
[1755064655735,0.4296,4623.6,4623.1,11.36]
[1755064656060,0.9238,4623.5,4623.1,11.36]
[1755064656262,0.002,4623.6,4623.5,0.108]
[1755064656566,0.002,4623.6,4623.5,3.482]
[1755064657063,0.9258,4623.6,4623.5,3.492]
[1755064658333,0.9258,4623.6,4623.5,0.118]
[1755064658534,0.9258,4623.6,4623.5,3.383]
[1755064658735,1.0338,4623.6,4623.5,3.383]
[1755064658940,0.002,4623.6,4623.5,3.383]
[1755064660481,0.002,4623.6,4623.5,3.933]
[1755064660792,0.9238,4626.0,4623.6,0.60118206]
[1755064660978,0.9238,4626.0,4623.6,1.83651163]
[1755064661178,0.9238,4626.0,4623.7,0.6372]
[1755064661381,0.9238,4626.0,4624.0,0.55]
[1755064661578,0.9238,4626.0,4624.2,0.55]
[1755064661979,0.086382,4628.7,4624.2,0.87]
[1755064662160,0.4982,4627.3,4624.4,2.71242311]
[1755064662361,0.4982,4627.3,4624.3,2.0672]
[1755064662362,0.4276,4626.9,4624.8,0.55]
[1755064662565,0.4276,4626.9,4625.0,0.55]
[1755064662766,0.4276,4627.2,4625.2,2.71203986]
[1755064663007,0.4276,4627.2,4625.4,0.55]
[1755064663228,0.4276,4627.2,4625.6,0.55]
[1755064663561,0.4276,4627.2,4625.6,0.67328403]
[1755064664001,0.4962,4627.1,4625.7,3.373]
[1755064664165,0.4276,4627.0,4625.6,0.28197196]
[1755064664496,0.4276,4627.0,4625.8,0.55]
[1755064664891,0.4276,4627.0,4626.0,0.55]
[1755064665259,0.4276,4627.0,4626.1,2.694]
[1755064665486,0.4276,4627.0,4626.3,5.182]
[1755064665688,0.4962,4626.9,4626.3,5.182]
[1755064665992,0.4276,4626.8,4626.4,3.372]
[1755064666293,0.4962,4626.7,4626.4,3.372]
[1755064666462,0.9238,4626.6,4626.4,3.372]
[1755064666663,0.9238,4626.5,4626.4,3.372]
[1755064667083,0.9238,4626.5,4626.3,5.182]
[1755064667284,0.9238,4626.4,4626.3,5.182]
[1755064667498,0.9238,4626.4,4626.3,8.554]
[1755064667688,0.9238,4626.4,4626.3,7.875]
[1755064668769,0.9238,4626.4,4626.3,7.983]
[1755064669091,0.9238,4626.4,4626.3,11.355]
[1755064669392,0.002,4627.3,4626.3,11.355]
[1755064669393,0.4276,4627.0,4626.3,11.355]
[1755064669594,0.002,4627.3,4626.4,0.55]
[1755064669795,0.002,4627.3,4627.2,0.108]
[1755064669994,0.002,4627.3,4627.2,3.48]
[1755064670495,0.002,4627.3,4627.2,3.9096]
[1755064670711,0.002,4627.3,4627.2,4.3516]
[1755064670873,0.002,4627.3,4627.2,4.4596]
[1755064671269,0.002,4627.3,4627.2,0.5376]
[1755064671606,0.002,4627.3,4627.2,3.9096]
[1755064671803,0.002,4627.3,4627.2,0.5376]
[1755064671990,0.4296,4627.3,4627.2,3.48]
[1755064672500,0.9258,4627.3,4627.2,3.48]
[1755064672701,0.9258,4627.3,4627.2,0.108]
[1755064672903,0.9258,4627.3,4627.2,3.48]
[1755064675483,0.9258,4627.3,4627.2,8.66]
[1755064678005,0.9258,4627.3,4627.2,5.18]
[1755064678320,0.9258,4627.3,4627.2,8.551]
[1755064680199,0.9258,4627.3,4627.2,5.18]
[1755064680397,0.9258,4627.3,4627.2,8.551]
[1755064682109,0.9258,4627.3,4627.2,5.18]
[1755064682514,0.9258,4627.3,4627.2,8.551]
[1755064682722,0.9258,4627.3,4627.2,5.18]
[1755064682887,0.9258,4627.3,4627.2,8.551]
[1755064683729,1.0338,4627.3,4627.2,8.551]
[1755064685136,0.4555,4627.3,4627.2,8.551]
[1755064685298,0.002,4627.3,4627.2,8.551]
[1755064685492,0.4555,4627.3,4627.2,8.551]
[1755064685813,0.9374,4627.3,4627.2,8.551]
[1755064686723,0.002,4627.3,4627.2,8.551]
[1755064687089,0.9374,4627.3,4627.2,8.551]
[1755064687290,0.002,4627.3,4627.2,8.551]
[1755064687496,0.002,4627.3,4627.2,8.659]
[1755064696934,0.9374,4627.3,4627.2,8.55]
[1755064699124,0.9374,4627.3,4627.2,5.18]
[1755064699321,0.9374,4627.3,4627.2,8.55]
[1755064700155,0.002,4627.3,4627.2,8.55]
[1755064700510,0.002,4627.3,4627.2,5.18]
[1755064700739,0.9374,4627.3,4627.2,8.55]
[1755064701518,0.9374,4627.3,4627.2,5.18]
[1755064701821,1.0454,4627.3,4627.2,8.55]
[1755064702006,1.0454,4627.3,4627.2,5.18]
[1755064702341,1.0454,4627.3,4627.2,8.55]
[1755064702342,1.5954,4627.3,4627.2,8.55]
[1755064702524,1.75514,4627.3,4627.2,8.55]
[1755064706454,1.20514,4627.3,4627.2,8.55]
[1755064713764,1.75514,4627.3,4627.2,8.55]
[1755064714135,1.75514,4627.3,4627.2,5.18]
[1755064714461,1.75514,4627.3,4627.2,8.55]
[1755064715158,1.75514,4627.3,4627.2,5.18]
[1755064716326,1.75514,4627.3,4627.2,8.55]
[1755064717556,1.75514,4627.3,4626.5,2.693]
[1755064717557,0.55,4627.2,4626.5,2.693]
[1755064717851,0.55,4627.0,4626.6,8.547]
[1755064718051,0.9229,4626.9,4626.7,5.181]
[1755064718265,0.9229,4626.8,4626.7,5.181]
[1755064718429,7.079415,4627.0,4626.7,5.181]
[1755064718757,0.16174,4627.3,4626.7,5.181]
[1755064719262,0.002,4627.3,4626.8,3.369]
[1755064719769,0.108,4626.9,4626.8,3.369]
[1755064721337,0.002,4627.3,4626.8,4.0062]
[1755064721545,0.002,4627.3,4626.9,0.6372]
[1755064721744,0.002,4627.3,4627.2,0.108]
[1755064722150,0.002,4627.3,4627.2,3.369]
[1755064722357,0.11,4627.3,4627.2,3.369]
[1755064723648,0.002,4627.3,4627.2,3.369]
[1755064723855,0.002,4627.3,4627.2,4.0062]
[1755064724070,0.002,4627.3,4627.2,4.1142]
[1755064725478,0.002,4627.3,4627.2,6.8082]
[1755064730247,0.002,4627.3,4627.2,2.802]
[1755064730446,0.002,4627.3,4627.2,6.17]
[1755064732084,0.002,4627.3,4627.2,11.241]
[1755064732389,1.0329,4627.3,4627.2,11.241]
[1755064734168,1.0329,4627.3,4627.2,7.873]
[1755064734361,1.0329,4627.3,4627.2,11.241]
[1755064734563,1.0329,4627.3,4627.2,7.873]
[1755064734877,1.0329,4627.3,4627.2,11.241]
[1755064735607,0.11,4627.3,4627.2,11.241]
[1755064735764,0.002,4627.3,4627.2,11.241]
[1755064736464,0.002,4627.3,4627.2,7.873]
[1755064736663,0.002,4627.3,4627.2,11.241]
[1755064741171,0.002,4627.3,4627.2,7.873]
[1755064741390,0.002,4627.3,4627.2,11.24]
[1755064745290,0.9388,4627.3,4627.2,11.24]
[1755064745597,0.9388,4627.3,4627.2,7.873]
[1755064745801,0.9388,4627.3,4627.2,11.24]
[1755064746865,0.9388,4627.3,4627.2,7.873]
[1755064747072,0.9388,4627.3,4627.2,11.24]
[1755064747794,0.9388,4627.3,4627.2,7.873]
[1755064747999,0.9388,4627.3,4627.2,11.24]
[1755064748199,0.9388,4627.3,4627.2,7.873]
[1755064748406,0.9388,4627.3,4627.2,11.24]
[1755064748900,0.9388,4627.3,4627.2,5.179]
[1755064749084,0.9388,4627.3,4627.2,8.546]
[1755064750196,0.002,4627.3,4627.2,8.546]
[1755064750770,0.002,4627.3,4627.2,8.545]
[1755064752515,0.464,4627.3,4627.2,8.545]
[1755064752698,0.9388,4627.3,4627.2,8.545]
[1755064752998,0.9388,4627.3,4627.2,9.135]
[1755064753916,0.464,4627.3,4627.2,9.135]
[1755064754687,0.464,4627.3,4627.2,5.769]
[1755064754905,0.002,4627.3,4627.2,9.135]
[1755064756796,0.002,4627.3,4627.2,5.769]
[1755064756976,0.9388,4627.3,4627.2,9.135]
[1755064759003,0.9388,4627.3,4627.2,5.769]
[1755064759204,0.9388,4627.3,4627.2,9.135]
[1755064760809,0.9388,4627.3,4627.2,5.769]
[1755064761000,0.9388,4627.3,4627.2,9.134]
[1755064761682,0.9388,4627.3,4627.2,5.769]
[1755064762094,0.9388,4627.3,4627.2,9.134]
[1755064762292,0.9388,4627.3,4627.2,5.769]
[1755064762506,0.002,4627.3,4627.2,9.134]
[1755064763012,0.11,4627.3,4627.2,9.134]
[1755064763609,0.11,4627.3,4627.2,9.7712]
[1755064763610,0.002,4627.3,4627.2,9.7712]
[1755064763911,0.002,4627.3,4627.2,9.134]
[1755064764078,0.002,4627.3,4627.2,5.769]
[1755064764285,0.11,4627.3,4627.2,9.134]
[1755064764707,0.11,4627.3,4627.2,5.769]
[1755064764889,1.0468,4627.3,4627.2,9.134]
[1755064767242,1.0468,4627.3,4627.2,5.769]
[1755064767392,1.0468,4627.3,4627.2,9.134]
[1755064767718,0.572,4627.3,4627.2,9.134]
[1755064768019,0.11,4627.3,4627.2,9.134]
[1755064768216,0.002,4627.3,4627.2,9.134]
[1755064768419,0.11,4627.3,4627.2,9.134]
[1755064768631,0.002,4627.3,4627.2,9.134]
[1755064772403,0.002,4627.3,4627.2,5.769]
[1755064772609,0.002,4627.3,4627.2,9.133]
[1755064775605,0.002,4627.3,4627.2,9.4024]
[1755064775792,0.002,4627.3,4627.2,9.7702]
[1755064779239,0.002,4627.3,4627.2,4.5912]
[1755064779806,0.002,4627.3,4627.2,4.5902]
[1755064780007,0.002,4627.3,4627.2,1.2272]
[1755064780307,0.002,4627.3,4627.2,4.5902]
[1755064785414,0.002,4627.3,4627.2,12.4622]
[1755064785731,0.002,4627.3,4627.2,13.0122]
[1755064787239,0.002,4627.3,4627.2,13.17416341]
[1755064787660,0.002,4627.3,4627.2,5.769]
[1755064788003,0.4659,4627.3,4627.2,5.769]
[1755064788207,0.9507,4627.3,4627.2,9.131]
[1755064788637,0.9507,4627.3,4627.2,5.769]
[1755064788850,0.9507,4627.3,4627.2,9.131]
[1755064789209,0.9507,4627.3,4627.2,5.769]
[1755064789409,0.9507,4627.3,4627.2,9.13]
[1755064790812,0.9507,4627.3,4627.2,5.769]
[1755064791011,0.9507,4627.3,4627.2,9.13]
[1755064791206,0.9507,4627.3,4627.2,5.769]
[1755064791542,0.9507,4627.3,4627.2,9.13]
[1755064791713,0.9507,4627.3,4627.2,5.769]
[1755064791908,0.9507,4627.3,4627.2,9.13]
[1755064792948,1.0587,4627.3,4627.2,9.13]
[1755064793113,1.0587,4627.3,4627.2,5.769]
[1755064793313,1.0587,4627.3,4627.2,9.13]
[1755064794439,1.0587,4627.3,4627.2,5.769]
[1755064794674,1.0587,4627.3,4627.2,9.13]
[1755064796425,1.0587,4627.3,4627.2,5.769]
[1755064796626,1.0587,4627.3,4627.2,9.13]
[1755064797714,1.0587,4627.3,4627.2,5.769]
[1755064797914,1.0587,4627.3,4627.2,9.13]
[1755064799054,0.5739,4627.3,4627.2,9.13]
[1755064799258,1.0587,4627.3,4627.2,9.13]
[1755064800156,1.0587,4627.3,4627.2,5.769]
[1755064800355,1.6087,4627.3,4627.2,9.129]
[1755064800519,2.83216768,4627.3,4627.2,9.129]
[1755064800724,1.0587,4627.3,4627.2,9.129]
[1755064801052,1.0587,4627.3,4627.2,8.72742648]
[1755064801356,1.0587,4627.3,4627.2,5.36742648]
[1755064801574,1.0587,4627.3,4627.2,8.72742648]
[1755064801733,1.0587,4627.3,4627.2,5.36742648]
[1755064801938,1.0587,4627.3,4627.2,8.72742648]
[1755064802857,1.0587,4627.3,4627.2,5.36742648]
[1755064803027,1.0587,4627.3,4627.2,8.72742648]
[1755064803222,1.0587,4627.3,4627.2,5.36742648]
[1755064803423,1.0587,4627.3,4627.2,8.72742648]
[1755064803642,1.024,4627.3,4627.2,5.36742648]
[1755064803824,0.11,4627.3,4627.2,8.72742648]
[1755064804329,0.002,4627.3,4627.2,9.47262648]
[1755064804542,0.002,4627.3,4627.2,6.11262648]
[1755064804742,0.002,4627.3,4627.2,9.47262648]
[1755064805758,0.002,4627.3,4627.2,10.02262648]
[1755064806470,0.002,4627.3,4627.2,6.66262648]
[1755064806646,0.002,4627.3,4627.2,10.02262648]
[1755064806972,0.002,4627.9,4627.3,0.55]
[1755064807271,0.108,4630.2,4627.9,0.55]
[1755064807445,0.108,4630.2,4627.8,0.108]
[1755064807446,0.4394,4630.4,4628.1,0.55]
[1755064807646,0.5474,4630.4,4628.2,4.017]
[1755064808047,0.5474,4630.4,4628.2,1.2952]
[1755064808251,0.4394,4630.0,4628.2,1.2952]
[1755064808543,0.4394,4629.7,4628.2,4.017]
[1755064808738,0.4394,4629.4,4628.2,3.467]
[1755064808971,0.4394,4629.4,4628.2,0.108]
[1755064809172,0.4394,4629.4,4628.2,3.467]
[1755064809352,0.108,4629.8,4628.2,3.467]
[1755064809353,0.5474,4629.8,4628.2,4.1042]
[1755064809711,0.4394,4629.8,4628.2,4.1042]
[1755064809872,0.4394,4630.1,4628.2,4.1042]
[1755064810175,0.4394,4629.3,4628.2,3.467]
[1755064810353,0.4394,4629.8,4628.2,0.108]
[1755064810555,0.4394,4629.8,4628.2,4.1042]
[1755064811196,0.108,4630.0,4628.2,4.1042]
[1755064811197,0.4394,4629.4,4628.2,4.1042]
[1755064811476,0.4394,4629.4,4628.2,3.467]
[1755064811979,0.002,4629.3,4628.2,3.467]
[1755064813791,0.4394,4628.6,4628.2,3.466]
[1755064813961,0.4414,4628.3,4628.2,3.466]
[1755064814572,0.002,4628.3,4628.2,3.466]
[1755064814984,0.002,4628.3,4628.2,0.108]
[1755064815504,0.002,4628.3,4628.2,11.336]
[1755064817361,0.002,4628.3,4628.2,9.2812]
[1755064820491,0.002,4628.3,4628.2,8.644]
[1755064820897,0.002,4628.3,4628.2,3.465]
[1755064821771,0.002,4628.3,4628.2,4.1022]
[1755064821972,0.002,4628.3,4628.2,4.6522]
[1755064822493,0.002,4628.7,4628.3,0.55]
[1755064822808,0.002,4628.7,4628.3,1.1872]
[1755064822989,0.002,4628.7,4628.6,0.658]
[1755064823195,0.002,4628.7,4628.6,4.014]
[1755064823379,0.002,4628.7,4628.6,4.6512]
[1755064825317,0.002,4628.7,4628.6,7.3432]
[1755064825605,0.002,4628.7,4628.6,12.5202]
[1755064827002,0.002,4628.7,4628.6,12.6350501]
[1755064827203,0.002,4628.7,4628.6,6.3176501]
[1755064827411,0.002,4628.7,4628.6,9.6736501]
[1755064827712,0.002,4629.3,4628.7,0.55]
[1755064827879,0.002,4629.3,4628.9,0.55]
[1755064828085,0.002,4629.3,4629.1,0.55]
[1755064828290,0.002,4629.3,4628.6,0.8600501]
[1755064828291,0.4394,4631.1,4629.3,0.55]
[1755064828510,0.8895,4631.0,4629.5,0.55]
[1755064828696,0.8895,4630.9,4629.7,0.55]
[1755064828897,0.8895,4630.8,4628.6,0.11463335]
[1755064829097,0.108,4630.5,4630.0,0.108]
[1755064829418,0.8895,4630.7,4628.5,0.11579208]
[1755064829621,0.4747,4631.4,4628.7,0.55]
[1755064829795,0.4747,4631.4,4629.0,2.16026481]
[1755064829999,0.487,4631.3,4629.5,0.55]
[1755064830200,0.487,4631.3,4629.2,0.55]
[1755064830438,0.4747,4631.2,4629.2,0.55]
[1755064830587,0.4747,4631.2,4630.9,0.108]
[1755064830793,0.487,4631.1,4628.6,0.81187376]
[1755064830987,0.108,4630.9,4630.2,0.108]
[1755064831218,0.9617,4630.8,4630.2,0.108]
[1755064831436,0.9617,4630.7,4630.2,0.108]
[1755064831651,0.1,4634.3,4628.6,0.81187376]
[1755064831652,0.9617,4630.6,4629.3,0.55]
[1755064831923,0.55,4633.1,4628.6,0.81187376]
[1755064831924,0.9617,4630.5,4629.4,3.355]
[1755064832126,16.12397684,4632.7,4629.5,3.355]
[1755064832127,0.9617,4630.4,4629.5,3.355]
[1755064832321,16.12397684,4632.7,4629.5,3.355]
[1755064832491,0.9617,4630.3,4629.5,3.355]
[1755064832691,0.002,4632.0,4629.5,3.355]
[1755064833013,0.9617,4630.2,4629.5,3.355]
[1755064834910,0.4747,4630.1,4629.5,3.355]
[1755064835422,0.4747,4630.1,4629.6,7.867]
[1755064835924,0.9617,4630.0,4629.7,3.354]
[1755064836128,0.9617,4629.9,4629.8,3.354]
[1755064837242,0.9617,4629.9,4629.6,7.867]
[1755064837406,0.9617,4629.8,4629.7,3.354]
[1755064841506,1.0697,4629.8,4629.7,3.354]
[1755064842431,0.487,4630.3,4629.7,3.354]
[1755064842608,0.4747,4630.5,4630.1,0.108]
[1755064842814,0.9617,4630.4,4630.2,3.354]
[1755064843015,0.9617,4630.3,4630.2,3.354]
[1755064845325,0.4747,4630.3,4630.2,3.354]
[1755064845531,0.9617,4630.3,4630.2,3.354]
[1755064846034,0.108,4630.7,4630.2,3.354]
[1755064846239,0.4747,4630.6,4630.2,3.354]
[1755064846418,1.0697,4631.0,4630.2,3.354]
[1755064846851,0.4747,4630.9,4630.2,3.354]
[1755064847153,0.9617,4630.9,4630.2,3.354]
[1755064847322,0.108,4630.7,4630.2,3.354]
[1755064847524,0.9617,4630.6,4630.2,3.354]
[1755064847730,0.9617,4630.5,4630.2,3.354]
[1755064847938,0.9617,4630.4,4630.2,3.354]
[1755064848122,0.9617,4630.3,4630.2,3.354]
[1755064849453,1.0697,4630.7,4630.2,3.354]
[1755064849652,0.4747,4631.4,4630.2,3.354]
[1755064849817,0.4747,4631.4,4630.3,0.7452]
[1755064850422,0.4747,4631.7,4630.3,0.7452]
[1755064851052,0.487,4631.6,4630.2,4.001139]
[1755064851275,0.4747,4631.5,4630.2,4.001139]
[1755064851433,0.487,4631.4,4630.2,3.354]
[1755064851633,0.4747,4631.3,4630.2,3.354]
[1755064851939,0.487,4631.2,4630.2,3.354]
[1755064852133,0.4747,4631.1,4630.2,3.354]
[1755064852356,0.487,4631.0,4630.2,3.354]
[1755064852661,0.4747,4630.9,4630.2,3.354]
[1755064853026,0.487,4630.8,4630.2,3.354]
[1755064853223,0.4747,4630.7,4630.2,3.354]
[1755064853426,0.9617,4630.6,4630.2,3.354]
[1755064853663,0.9617,4630.5,4630.2,3.354]
[1755064853834,16.10137279,4631.2,4630.2,3.354]
[1755064854155,0.9617,4630.4,4630.2,3.354]
[1755064854557,1.61013728,4631.1,4630.2,3.354]
[1755064854854,0.9617,4631.0,4630.2,3.354]
[1755064855235,0.4747,4630.9,4630.2,3.354]
[1755064856345,0.002,4632.0,4630.2,3.354]
[1755064856655,0.4747,4631.9,4630.3,0.7452]
[1755064857163,0.4747,4631.9,4630.3,0.4758]
[1755064857342,0.002,4632.0,4630.4,0.67237242]
[1755064857544,0.002,4632.0,4630.4,0.4758]
[1755064857863,0.002,4632.0,4630.5,0.4758]
[1755064859060,0.002,4632.0,4630.6,0.55]
[1755064859464,0.002,4632.0,4630.7,0.6493]
[1755064859630,0.002,4632.0,4631.9,0.108]
[1755064859837,0.002,4632.0,4631.9,8.636]
[1755064860333,0.002,4632.0,4631.9,5.175]
[1755064860334,0.437,4632.0,4631.9,5.175]
[1755064860535,1.0152,4632.0,4631.9,8.528]
[1755064860842,0.545,4632.0,4631.9,8.528]
[1755064861633,0.11,4632.0,4631.9,8.528]
[1755064861837,0.002,4632.0,4631.9,8.528]
[1755064863350,0.9072,4632.0,4631.9,8.528]
[1755064863683,0.002,4632.0,4631.9,8.528]
[1755064864439,0.002,4632.0,4631.9,8.636]
[1755064865355,0.002,4632.0,4631.9,9.2853]
[1755064865562,0.002,4632.0,4631.9,8.636]
[1755064865732,0.9072,4632.0,4631.9,5.283]
[1755064865937,0.9072,4632.0,4631.9,8.527]
[1755064870350,0.437,4632.0,4631.9,8.527]
[1755064871237,0.002,4632.0,4631.9,8.527]
[1755064874943,0.002,4632.0,4631.9,9.1763]
[1755064875449,0.002,4632.0,4631.9,8.9797]
[1755064875972,0.002,4632.0,4631.9,8.527]
[1755064876373,0.002,4632.0,4631.9,8.635]
[1755064881477,0.437,4632.0,4631.9,8.635]
[1755064881683,0.9072,4632.0,4631.9,8.527]
[1755064882762,1.0152,4632.0,4631.9,8.527]
[1755064884659,0.002,4632.0,4631.9,8.527]
[1755064885067,0.9072,4632.0,4631.9,8.527]
[1755064886164,0.002,4632.0,4631.9,8.527]
[1755064887166,0.9072,4632.0,4631.9,8.527]
[1755064887767,1.0152,4632.0,4631.9,8.527]
[1755064895278,2.72635214,4632.0,4631.9,8.527]
[1755064895583,0.11,4632.0,4631.9,8.527]
[1755064897720,0.002,4632.0,4631.9,8.527]
[1755064898988,0.9315,4632.0,4631.9,8.527]
[1755064899599,0.4522,4632.0,4631.9,8.527]
[1755064899901,0.002,4632.0,4631.9,8.527]
[1755064901316,0.9315,4632.0,4631.9,8.527]
[1755064902095,2.64508214,4632.0,4631.9,8.527]
[1755064902910,3.19508214,4632.0,4631.9,8.527]
[1755064907710,0.55,4631.9,4630.8,2.69]
[1755064907897,16.09632141,4631.2,4630.9,5.174]
[1755064908214,0.9295,4631.1,4630.9,5.174]
[1755064908420,0.108,4631.0,4630.9,5.174]
[1755064908611,0.5582,4631.0,4630.9,5.174]
[1755064908804,1.0375,4631.0,4630.9,5.174]
[1755064909020,1.0375,4631.0,4630.9,8.524]
[1755064909194,0.5582,4631.0,4630.9,8.524]
[1755064909395,2.39391036,4631.0,4630.9,8.524]
[1755064910007,2.87321036,4631.0,4630.9,8.524]
[1755064912333,3.42321036,4631.0,4630.9,8.524]
[1755064923432,2.87321036,4631.0,4630.9,5.176]
[1755064923631,0.55,4630.9,4630.3,0.001]
[1755064923838,0.55,4630.7,4630.4,8.525]
[1755064924039,16.64632141,4630.5,4630.4,8.525]
[1755064924233,17.70772141,4630.5,4630.4,8.525]
[1755064926253,1.05026254,4630.8,4630.4,8.525]
[1755064926455,0.108,4630.5,4630.4,5.176]
[1755064926820,0.108,4630.5,4630.4,8.525]
[1755064926821,0.5677,4630.5,4630.4,8.525]
[1755064927052,0.108,4630.5,4630.4,8.525]
[1755064927251,0.26914,4630.5,4630.4,8.525]
[1755064927473,0.108,4630.5,4630.4,8.525]
[1755064927625,0.4597,4631.3,4630.4,8.525]
[1755064927827,0.55,4631.2,4630.4,8.525]
[1755064928229,0.55,4630.8,4630.4,8.525]
[1755064928554,0.55,4630.6,4630.5,3.349]
[1755064928726,2.30997214,4630.6,4630.5,3.349]
[1755064928928,3.26337214,4630.6,4630.5,3.349]
[1755064930058,2.30997214,4630.6,4630.5,3.349]
[1755064930228,0.55,4630.6,4630.5,3.349]